Workbook

Sheet Info

Sheet Trial (hidden)

Sheet Instructions (hidden)
A1: Excel Skills | Google Adwords - Ad Position Analysis Template
A2: Instructions
A3: www.excel-skills.com
A5: This template enables users to analyse Google AdWords online marketing performance by ad position which then enables business owners and ad managers to determine which ad positions are optimal in order to ensure maximum profitability. Users are required to copy daily AdWords statistics by campaign, ad group and device into the template and the automated analysis can then be viewed for any user defined period. All ad position calculations are based on the daily average position for each device.
A7: The following sheets are included in the template:
A8: Set-up - specify your reporting dates in the input cells at the top of the sheet. These date settings determine which dates are set for the current, previous1 and previous 2 periods in the analysis on the Positions sheet. You also need to add your devices, campaigns and ad groups to the lists on this sheet.
A9: Data - create a report by using the Reports feature in Google AdWords and export your report data to Excel before copying & pasting your data onto this sheet. The columns that need to be included in the report are exactly the same as our column headings and the columns need to be included in the report in the same sequence as they are included on this sheet. The data on this sheet is automatically updated to the analysis on the Positions sheet.
A10: Positions - specify your ad position parameters by entering the value parameters in the High columns before selecting the appropriate campaign, ad group and device from the list boxes at the top of the sheet. All the calculations in the columns with light blue column headings are automated and provide AdWords statistics that are based on the daily average positions per device. Statistics for the current period which is specified on the Setup sheet can also be compared to 2 previous user defined periods.
A12: Set-up
A14: The date ranges that are used for the ad position analysis on the Positions sheet need to be specified at the top of the Setup sheet. The Positions sheet includes a current period, previous 1 period and a previous 2 period. All of these periods are dependent upon the from and to dates that are specified in cells B5 and B6 on the Setup sheet.
A16: In terms of the current period for the analysis, the from and to dates that are entered can be for any date range and does not have to include full calendar months. You can even specify a single day in both the from and to dates to view an analysis for only that day. The date range can also span multiple calendar months by simply entering a from and to day that span multiple months.
A18: Note: If you clear the contents of the two input cells, the first day of the current month will be used as the from date and the last day of the current month will be used as the to date. Also, if you enter a to date which is before the from date, the to date cell will be highlighted in red to indicate the error.
A20: The previous 1 and previous 2 from and to dates will always include full calendar months and the number of calendar months that are included is determined by the value that is entered in cell B8. The input in this cell does not influence the current period, only the two previous periods. The previous period 1 is further determined as the month which immediately precedes the from date that is specified in cell B5 and the previous 2 period will be the period that precedes this period.
A22: Example: If the number of calendar months that are specified in cell B8 includes say 3 months, both the previous 1 and previous 2 from and to dates will span 3 months with the previous 1 period being the 3 full calendar months immediately before the from date which has been entered in cell B5 and the previous 2 period being the 3 month period before that.
A24: Note: The previous 1 and previous 2 from and to dates are determined by the formulas which have been entered in these cells. If you replace these formulas with your own dates, the previous 1 and 2 periods on the Positions sheet will not function as per the above design but you will then be able to enter user defined date ranges for these two sections on the Positions sheet.
A26: The Setup sheet also includes a list of devices which can be edited by simply inserting a new row anywhere above the "End of list" row and adding a new entry in column A. All the entries that are added to the list will automatically be included in the device selection cell on the Position sheet.
A28: The next section on the Setup sheet contains the Campaign list which is populated in the campaign selection list box on the Positions sheet. All the campaigns that have been created in your AdWords account should be included in this list. Missing campaigns will not be available for selection on the Positions sheet. New campaigns can be included by inserting a new row anywhere above the "End of list" row and adding a new entry in column A.
A30: The final section on the Setup sheet contains the Ad Group list which is populated in the ad group selection list box on the Positions sheet. Each ad group also needs to be linked to a campaign in column C. All the ad groups (and their linked campaigns) that have been created in your AdWords account should be included in this list. Missing ad groups will not be available for selection on the Positions sheet. New ad groups can be included by inserting a new row anywhere above the "End of list" row and adding a new entry in column A with the appropriate campaign in column C.
A32: Note: The easiest way of maintaining your Campaign and Ad Group lists is by exporting the data from Google AdWords to Excel and then copying the data into the appropriate sections on the Setup sheet. You just need to ensure that there are sufficient rows in the appropriate section before copying the data.
A34: Data
A36: This template requires the inclusion of daily AdWords data by campaign, ad group and device. This data should be copied onto the Data sheet. The easiest way of including your data is by creating the appropriate report through the Google AdWords account interface and then exporting the data to Excel before copying the data from the Excel extract onto this sheet. The report needs to be created so that the columns are included in exactly the same sequence as the columns on the Data sheet although you can add columns or move columns so that the sequence between your extract file and the columns on the Data sheet are the same.
A38: Note: The AdWords fields that you need to add to your report will have the exact same field names as the column headings that we have included on the Data sheet. The Day, Campaign, Ad Group and Device columns need to be added to the Row section of the report and the other fields need to be added to the Columns section.
A40: The AdWords report can be extracted as an Excel or CSV file and downloaded. When you then open the report, you will be able to copy the data onto the Data sheet in this template. Note that some columns may contain a currency symbol which may result in the data in that column being interpreted as text instead of values by Excel. We therefore recommend removing all currency symbols from your Google data (Control + H for Replace and then replace currency text with nothing for the entire data selection).
A42: Note: All the columns on the Data sheet have been included in an Excel table. This feature is extremely useful when entering or copying data in a table format because the cell range to which the table refers is automatically extended when you add data to the table. The table also extends automatically to include the copied data as long as you copy the data into the first blank row below the table.
A44: Ad Positions
A46: The Positions sheet enables users to view AdWords statistics for a user defined range of ad positions. All the calculations on this sheet are automated and based on the daily average positions per campaign, ad group and device which is included on the Data sheet. You can also select individual campaigns, ad groups and devices form the list boxes at the top of the sheet in order to view only the statistics for the selected items.
A48: Note: All the calculations on the Positions sheet are based on daily average positions. It is unfortunately not possible to compile a report in AdWords which includes specific ad positions and we therefore use daily averages instead in order to highlight optimal ad positions which result in maximum profitability.
A50: Note: The list boxes at the top of the sheet are populated based on the device, campaign & ad group lists which are included on the Setup sheet. If the contents of the appropriate list box are cleared, all the data for the appropriate metric will be included in the calculations.
A52: Note: When a campaign is selected in the Campaign list box, only the ad groups that are linked to the selected campaign will be included in the Ad Group list box. Also, if the ad group that is currently included in the list box cell is not linked to the selected campaign, the ad group list box content will be formatted in red to indicate that a new ad group needs to be selected.
A54: There are three sections which can be compared in order to view trends in ad positions - the first section displays the current date range, the second the previous 1 date range and the third the previous 2 date range. The from and to dates for each of these sections need to be specified on the Setup sheet. If you therefore want to change any of these date ranges, you need to do so by editing the dates on the Setup sheet.
A56: Aside from the list boxes at the top of the sheet, the only user input that is required on the Positions sheet is to specify your preferred ad position parameters. The low values in column B be should be left unchanged but the high values in column C can be changed according to requirements.
A58: Note: All the user input cells on the Positions sheet have a yellow cell background. The cells with light blue cell backgrounds contain formulas which should not be replaced otherwise the automated calculations on the sheet may become inaccurate.
A60: The template contains 9 default position ranges but you can add additional rows if necessary by simply inserting new rows anywhere above the last row in the section (the one with a position and a plus sign), copying one of the existing rows (excluding the first and last rows) and entering new high values for the rows that have been added. If you add additional rows to any of the 3 sections, you should also do so in the other two sections.
A62: Note: If you make changes to the high values in column C in any of the three sections, the high values for the affected section should be copied to the other two sections in order to ensure that the calculations are performed based on the same position ranges and therefore remain consistent & comparable.
A64: Note: If any of the high values in column C are highlighted in red, it means that the value is invalid because it is less than the low value which has been included in column B. If you enter a valid value, the red highlighting will be removed automatically.
A66: Note: The high values that are specified in each row are included in the formulas with a less than (<) operator and not a less than or equal to operator (<=). This means that even though the high value may be displayed as say 2.0, it actually means that the row includes all values from say 1.5 to 1.99. The next row will contain the high value of the previous row as the low value and therefore include all values from 2.0 to say 2.49 (if the high value for this row is 2.50).
A68: The purpose of the calculations on the Positions sheet is to identify the ad positions that are the most profitable and which can then be targeted in your AdWords campaign. In order to identify optimal ad positions, we recommend reviewing the click through rate (CTR), cost per click (CPC), number of conversions, conversion rate and the return on investment measurements (if they are all used). The way in which data is reviewed & interpreted may however differ from business to business and depend on for example the way in which conversions are recorded in Google AdWords. You therefore need to formulate & apply an approach which is suitable for your type of business.
A70: If you need guidance on any of the metrics (column headings) that have been included in our calculations, we recommend accessing the Help feature from within Google AdWords in order to do so. The Spread metric is the only metric that is not a typical AdWords metric and is calculated as a volume based indication of the percentage of clicks that fall within a position range.
A72: This is an important metric which when compared between the three sections is also an indication of trends in competition especially when considering the movement in the average cost per click metric. For example, in one month a cost of click of say $5 could have resulted in 50% of clicks coming from ads which are positioned between 1 and 1.5 but in a subsequent month, the same cost per click could have resulted in only 30% of clicks coming from ads in this range with 20% dropping down to the next ad position range. If the most profitable range is the 1 to 1.5 range, this trend would indicate that the cost per click may need to be increased in order to get the same percentage of clicks from within the optimal position range.
A74: Another consideration when determining optimal positions is the volume of conversions. It is a generally accepted principle that the most conversions will occur in the higher ad positions. When reviewing stats like the cost per conversion, the conversion rate and return on investment, it may appear that a lower position may be the most profitable but if the volume in this position is substantially lower than the volume for the positions at the top of a page, it may not be the most profitable position. Volume of conversions is therefore just as important a metric as conversion rate, cost per conversion and return on investment.
A76: Help & Customization
A78: If you experience any difficulty while using this template and you are not able to find the appropriate guidance in these instructions, please e-mail us at support@excel-skills.com for assistance. This template has been designed with flexibility in mind to ensure that it can be used in most business environments. If however you need an Excel based template that is customized specifically for your business requirements, please e-mail our Support function and provide a brief explanation of your requirements.
A80: © Copyright
A82: This template remains the intellectual property of www.excel-skills.com and is protected by international copyright laws. Any publication or distribution of this template outside the scope of the permitted use of the template is expressly prohibited. In terms of the permitted use of this template, only the distribution of the template to persons within the same organisation as the registered user or persons outside the organisation who can reasonably be expected to require access to the template as a direct result of the use of the template by the registered user is allowed. Subsequent distribution of the template by parties outside of the organisation is however expressly prohibited and represents an infringement of international copyright laws.

Sheet Setup (hidden)
A1: Google Adwords - Ad Position Analysis
A2: Setup
A3: © www.excel-skills.com
A4: Reporting Periods: | B4: Current | D4: Previous 1 | F4: Previous 2
A5: From Date | B5: 2019-04-01 | C5: =IF(ISBLANK(B5),DATE(YEAR(TODAY()),MONTH(TODAY()),1),B5) -> 2019-04-01 | D5: =DATE(YEAR(C5),MONTH(C5)-$C$8,1) -> 2019-03-01 | F5: =DATE(YEAR(D5),MONTH(D5)-$C$8,1) -> 2019-02-01
A6: To Date | B6: 2019-04-30 | C6: =IF(ISBLANK(B6),DATE(YEAR(TODAY()),MONTH(TODAY())+1,0),B6) -> 2019-04-30 | D6: =DATE(YEAR(C5),MONTH(C5),1-1) -> 2019-03-31 | F6: =DATE(YEAR(D5),MONTH(D5),DAY(D5)-1) -> 2019-02-28
A8: Interval in Months | B8: 1 | C8: =IF(ISBLANK(B8),1,B8) -> 1
A10: Device List
A11: Desktop
A12: Mobile
A13: Tablet
A14: Other
A15: End of list
A17: Campaigns List
A18: Campaign 1
A19: Campaign 2
A20: Campaign 3
A21: Campaign 4
A22: Campaign 5
A23: End of list
A25: Ad Groups List
A26: Ad Group | C26: Campaign
A27: Ad Group 1.1 | C27: Campaign 1
A28: Ad Group 1.2 | C28: Campaign 1
A29: Ad Group 1.3 | C29: Campaign 1
A30: Ad Group 2.1 | C30: Campaign 2
A31: Ad Group 2.2 | C31: Campaign 2
A32: Ad Group 3.1 | C32: Campaign 3
A33: Ad Group 4.1 | C33: Campaign 4
A34: Ad Group 4.2 | C34: Campaign 4
A35: Ad Group 4.3 | C35: Campaign 4
A36: Ad Group 5.1 | C36: Campaign 5
A37: Ad Group 5.2 | C37: Campaign 5
A38: Ad Group 5.3 | C38: Campaign 5
A39: End of list

Sheet Data (hidden)
A1: Google Adwords - Ad Position Analysis
A2: Import Data
A3: © www.excel-skills.com
A4: Date | B4: Campaign | C4: Ad Group | D4: Device | E4: Clicks | F4: Impressions | G4: Cost | H4: Avg. Pos | I4: Conversions | J4: Total Conv. Value
A5: 2019-01-01 | B5: Campaign 1 | C5: Ad Group 1.1 | D5: Tablet | E5: 10 | F5: 110 | G5: 1.4 | H5: 3.73 | I5: 1 | J5: 50
A6: 2019-01-01 | B6: Campaign 1 | C6: Ad Group 1.3 | D6: Desktop | E6: 10 | F6: 150 | G6: 1.4 | H6: 2.73 | I6: 2 | J6: 50
A7: 2019-01-01 | B7: Campaign 1 | C7: Ad Group 1.3 | D7: Mobile | E7: 7 | F7: 109 | G7: 1.15 | H7: 2.24 | I7: 2 | J7: 50
A8: 2019-01-01 | B8: Campaign 1 | C8: Ad Group 1.3 | D8: Tablet | E8: 20 | F8: 20 | G8: 38.2 | H8: 2.5 | I8: 4 | J8: 150
A9: 2019-01-01 | B9: Campaign 2 | C9: Ad Group 2.1 | D9: Desktop | E9: 10 | F9: 40 | G9: 12.4 | H9: 1.75 | I9: 2 | J9: 100
A10: 2019-01-01 | B10: Campaign 2 | C10: Ad Group 2.1 | D10: Mobile | E10: 8 | F10: 33 | G10: 11.56 | H10: 1.44 | I10: 2 | J10: 100
A11: 2019-01-01 | B11: Campaign 2 | C11: Ad Group 2.2 | D11: Desktop | E11: 20 | F11: 60 | G11: 5.6 | H11: 3.17 | I11: 3 | J11: 100
A12: 2019-01-01 | B12: Campaign 2 | C12: Ad Group 2.2 | D12: Mobile | E12: 14 | F12: 41 | G12: 4.32 | H12: 2.6 | I12: 3 | J12: 100
A13: 2019-01-01 | B13: Campaign 4 | C13: Ad Group 4.1 | D13: Desktop | E13: 10 | F13: 620 | G13: 4.2 | H13: 3.08 | I13: 2 | J13: 50
A14: 2019-01-01 | B14: Campaign 4 | C14: Ad Group 4.1 | D14: Mobile | E14: 7 | F14: 429 | G14: 3.28 | H14: 2.53 | I14: 2 | J14: 50
A15: 2019-01-01 | B15: Campaign 4 | C15: Ad Group 4.2 | D15: Desktop | E15: 10 | F15: 50 | G15: 18.7 | H15: 1.6 | I15: 2 | J15: 100
A16: 2019-01-01 | B16: Campaign 4 | C16: Ad Group 4.2 | D16: Mobile | E16: 8 | F16: 42 | G16: 17.75 | H16: 1.31 | I16: 2 | J16: 100
A17: 2019-01-02 | B17: Campaign 1 | C17: Ad Group 1.1 | D17: Desktop | E17: 20 | F17: 1170 | G17: 4.5 | H17: 3.93 | I17: 3 | J17: 100
A18: 2019-01-02 | B18: Campaign 1 | C18: Ad Group 1.1 | D18: Mobile | E18: 12 | F18: 710 | G18: 3.09 | H18: 3.22 | I18: 2 | J18: 50
A19: 2019-01-02 | B19: Campaign 1 | C19: Ad Group 1.3 | D19: Desktop | E19: 10 | F19: 370 | G19: 22.7 | H19: 2.59 | I19: 2 | J19: 50
A20: 2019-01-02 | B20: Campaign 1 | C20: Ad Group 1.3 | D20: Mobile | E20: 7 | F20: 274 | G20: 19.01 | H20: 2.12 | I20: 2 | J20: 50
A21: 2019-01-02 | B21: Campaign 2 | C21: Ad Group 2.1 | D21: Desktop | E21: 30 | F21: 140 | G21: 37.1 | H21: 2.5 | I21: 5 | J21: 200
A22: 2019-01-02 | B22: Campaign 2 | C22: Ad Group 2.1 | D22: Mobile | E22: 23 | F22: 105 | G22: 31.44 | H22: 2.05 | I22: 5 | J22: 150
A23: 2019-01-02 | B23: Campaign 2 | C23: Ad Group 2.2 | D23: Desktop | E23: 20 | F23: 160 | G23: 19.7 | H23: 2.62 | I23: 3 | J23: 100
A24: 2019-01-02 | B24: Campaign 2 | C24: Ad Group 2.2 | D24: Mobile | E24: 15 | F24: 118 | G24: 16.43 | H24: 2.15 | I24: 3 | J24: 100
A25: 2019-01-02 | B25: Campaign 4 | C25: Ad Group 4.1 | D25: Desktop | E25: 70 | F25: 1150 | G25: 82 | H25: 2.97 | I25: 11 | J25: 400
A26: 2019-01-02 | B26: Campaign 4 | C26: Ad Group 4.1 | D26: Mobile | E26: 49 | F26: 808 | G26: 65.14 | H26: 2.44 | I26: 10 | J26: 300
A27: 2019-01-02 | B27: Campaign 4 | C27: Ad Group 4.2 | D27: Desktop | E27: 20 | F27: 80 | G27: 53.1 | H27: 1.88 | I27: 4 | J27: 150
A28: 2019-01-02 | B28: Campaign 4 | C28: Ad Group 4.2 | D28: Mobile | E28: 16 | F28: 65 | G28: 48.72 | H28: 1.54 | I28: 4 | J28: 150
A29: 2019-01-02 | B29: Campaign 4 | C29: Ad Group 4.3 | D29: Desktop | E29: 10 | F29: 470 | G29: 38.6 | H29: 1.81 | I29: 2 | J29: 100
A30: 2019-01-02 | B30: Campaign 4 | C30: Ad Group 4.3 | D30: Mobile | E30: 8 | F30: 385 | G30: 35.72 | H30: 1.48 | I30: 2 | J30: 100
A31: 2019-01-02 | B31: Campaign 5 | C31: Ad Group 5.1 | D31: Desktop | E31: 40 | F31: 1520 | G31: 64.9 | H31: 3.24 | I31: 6 | J31: 200
A32: 2019-01-02 | B32: Campaign 5 | C32: Ad Group 5.1 | D32: Mobile | E32: 27 | F32: 1028 | G32: 49.58 | H32: 2.66 | I32: 5 | J32: 150
A33: 2019-01-02 | B33: Campaign 5 | C33: Ad Group 5.3 | D33: Desktop | E33: 20 | F33: 400 | G33: 19.4 | H33: 2.2 | I33: 4 | J33: 150
A34: 2019-01-02 | B34: Campaign 5 | C34: Ad Group 5.3 | D34: Mobile | E34: 16 | F34: 312 | G34: 17.1 | H34: 1.8 | I34: 4 | J34: 150
A35: 2019-01-03 | B35: Campaign 1 | C35: Ad Group 1.1 | D35: Desktop | E35: 30 | F35: 2540 | G35: 14 | H35: 3.37 | I35: 4 | J35: 150
A36: 2019-01-03 | B36: Campaign 1 | C36: Ad Group 1.1 | D36: Mobile | E36: 20 | F36: 1684 | G36: 10.49 | H36: 2.76 | I36: 3 | J36: 100
A37: 2019-01-03 | B37: Campaign 1 | C37: Ad Group 1.1 | D37: Tablet | E37: 10 | F37: 340 | G37: 11.4 | H37: 3.85 | I37: 1 | J37: 50
A38: 2019-01-03 | B38: Campaign 1 | C38: Ad Group 1.3 | D38: Desktop | E38: 70 | F38: 920 | G38: 90 | H38: 2.11 | I38: 13 | J38: 500
A39: 2019-01-03 | B39: Campaign 1 | C39: Ad Group 1.3 | D39: Mobile | E39: 55 | F39: 726 | G39: 80.24 | H39: 1.73 | I39: 13 | J39: 450
A40: 2019-01-03 | B40: Campaign 2 | C40: Ad Group 2.1 | D40: Desktop | E40: 10 | F40: 220 | G40: 2.8 | H40: 1.73 | I40: 2 | J40: 100
A41: 2019-01-03 | B41: Campaign 2 | C41: Ad Group 2.1 | D41: Mobile | E41: 8 | F41: 182 | G41: 2.62 | H41: 1.42 | I41: 2 | J41: 100
A42: 2019-01-03 | B42: Campaign 2 | C42: Ad Group 2.2 | D42: Desktop | E42: 20 | F42: 390 | G42: 28.9 | H42: 2.51 | I42: 3 | J42: 100
A43: 2019-01-03 | B43: Campaign 2 | C43: Ad Group 2.2 | D43: Mobile | E43: 15 | F43: 292 | G43: 24.46 | H43: 2.06 | I43: 3 | J43: 100
A44: 2019-01-03 | B44: Campaign 3 | C44: Ad Group 3.1 | D44: Desktop | E44: 10 | F44: 20 | G44: 43.5 | H44: 1 | I44: 2 | J44: 100
A45: 2019-01-03 | B45: Campaign 3 | C45: Ad Group 3.1 | D45: Mobile | E45: 9 | F45: 18 | G45: 44.24 | H45: 1 | I45: 2 | J45: 100
A46: 2019-01-03 | B46: Campaign 3 | C46: Ad Group 3.1 | D46: Tablet | E46: 10 | F46: 10 | G46: 16.6 | H46: 1 | I46: 2 | J46: 100
A47: 2019-01-03 | B47: Campaign 4 | C47: Ad Group 4.1 | D47: Desktop | E47: 120 | F47: 2770 | G47: 106.2 | H47: 2.77 | I47: 20 | J47: 700
A48: 2019-01-03 | B48: Campaign 4 | C48: Ad Group 4.1 | D48: Mobile | E48: 87 | F48: 2003 | G48: 86.76 | H48: 2.27 | I48: 18 | J48: 550
A49: 2019-01-03 | B49: Campaign 4 | C49: Ad Group 4.2 | D49: Desktop | E49: 40 | F49: 240 | G49: 113.6 | H49: 1.29 | I49: 8 | J49: 300
A50: 2019-01-03 | B50: Campaign 4 | C50: Ad Group 4.2 | D50: Mobile | E50: 35 | F50: 209 | G50: 111.81 | H50: 1.06 | I50: 9 | J50: 300
A51: 2019-01-03 | B51: Campaign 4 | C51: Ad Group 4.3 | D51: Desktop | E51: 60 | F51: 800 | G51: 110 | H51: 1.8 | I51: 12 | J51: 450
A52: 2019-01-03 | B52: Campaign 4 | C52: Ad Group 4.3 | D52: Mobile | E52: 49 | F52: 656 | G52: 101.93 | H52: 1.48 | I52: 12 | J52: 400
A53: 2019-01-03 | B53: Campaign 5 | C53: Ad Group 5.1 | D53: Desktop | E53: 10 | F53: 4120 | G53: 27.1 | H53: 3.17 | I53: 2 | J53: 50
A54: 2019-01-03 | B54: Campaign 5 | C54: Ad Group 5.1 | D54: Mobile | E54: 7 | F54: 2814 | G54: 20.92 | H54: 2.6 | I54: 2 | J54: 50
A55: 2019-01-03 | B55: Campaign 5 | C55: Ad Group 5.2 | D55: Desktop | E55: 10 | F55: 60 | G55: 5.5 | H55: 1.33 | I55: 2 | J55: 100
A56: 2019-01-03 | B56: Campaign 5 | C56: Ad Group 5.2 | D56: Mobile | E56: 9 | F56: 52 | G56: 5.39 | H56: 1.09 | I56: 2 | J56: 100
A57: 2019-01-03 | B57: Campaign 5 | C57: Ad Group 5.3 | D57: Desktop | E57: 70 | F57: 1230 | G57: 123.4 | H57: 2.31 | I57: 13 | J57: 500
A58: 2019-01-03 | B58: Campaign 5 | C58: Ad Group 5.3 | D58: Mobile | E58: 54 | F58: 946 | G58: 107.23 | H58: 1.89 | I58: 12 | J58: 400
A59: 2019-01-04 | B59: Campaign 1 | C59: Ad Group 1.1 | D59: Desktop | E59: 40 | F59: 3350 | G59: 15.8 | H59: 3.53 | I59: 6 | J59: 200
A60: 2019-01-04 | B60: Campaign 1 | C60: Ad Group 1.1 | D60: Mobile | E60: 26 | F60: 2167 | G60: 11.55 | H60: 2.89 | I60: 5 | J60: 150
A61: 2019-01-04 | B61: Campaign 1 | C61: Ad Group 1.3 | D61: Desktop | E61: 30 | F61: 970 | G61: 51.6 | H61: 2.22 | I61: 6 | J61: 200
A62: 2019-01-04 | B62: Campaign 1 | C62: Ad Group 1.3 | D62: Mobile | E62: 23 | F62: 755 | G62: 45.36 | H62: 1.82 | I62: 6 | J62: 150
A63: 2019-01-04 | B63: Campaign 2 | C63: Ad Group 2.1 | D63: Desktop | E63: 60 | F63: 360 | G63: 49.9 | H63: 1.86 | I63: 12 | J63: 450
A64: 2019-01-04 | B64: Campaign 2 | C64: Ad Group 2.1 | D64: Mobile | E64: 49 | F64: 293 | G64: 45.9 | H64: 1.53 | I64: 12 | J64: 400
A65: 2019-01-04 | B65: Campaign 2 | C65: Ad Group 2.2 | D65: Desktop | E65: 20 | F65: 440 | G65: 9.2 | H65: 2.14 | I65: 4 | J65: 150
A66: 2019-01-04 | B66: Campaign 2 | C66: Ad Group 2.2 | D66: Mobile | E66: 16 | F66: 346 | G66: 8.17 | H66: 1.75 | I66: 4 | J66: 150
A67: 2019-01-04 | B67: Campaign 4 | C67: Ad Group 4.1 | D67: Desktop | E67: 30 | F67: 3360 | G67: 20.7 | H67: 2.87 | I67: 5 | J67: 150
A68: 2019-01-04 | B68: Campaign 4 | C68: Ad Group 4.1 | D68: Mobile | E68: 21 | F68: 2396 | G68: 16.68 | H68: 2.35 | I68: 4 | J68: 100
A69: 2019-01-04 | B69: Campaign 4 | C69: Ad Group 4.2 | D69: Desktop | E69: 70 | F69: 260 | G69: 294.5 | H69: 1.46 | I69: 14 | J69: 550
A70: 2019-01-04 | B70: Campaign 4 | C70: Ad Group 4.2 | D70: Mobile | E70: 60 | F70: 222 | G70: 284.2 | H70: 1.2 | I70: 15 | J70: 500
A71: 2019-01-04 | B71: Campaign 4 | C71: Ad Group 4.3 | D71: Desktop | E71: 30 | F71: 810 | G71: 74.4 | H71: 1.9 | I71: 6 | J71: 250
A72: 2019-01-04 | B72: Campaign 4 | C72: Ad Group 4.3 | D72: Mobile | E72: 24 | F72: 656 | G72: 68.1 | H72: 1.56 | I72: 6 | J72: 200
A73: 2019-01-04 | B73: Campaign 5 | C73: Ad Group 5.3 | D73: Desktop | E73: 30 | F73: 1190 | G73: 19.2 | H73: 2.43 | I73: 5 | J73: 200
A74: 2019-01-04 | B74: Campaign 5 | C74: Ad Group 5.3 | D74: Mobile | E74: 23 | F74: 901 | G74: 16.42 | H74: 1.99 | I74: 5 | J74: 150
A75: 2019-01-05 | B75: Campaign 1 | C75: Ad Group 1.1 | D75: Desktop | E75: 130 | F75: 3300 | G75: 64.7 | H75: 3.21 | I75: 20 | J75: 650
A76: 2019-01-05 | B76: Campaign 1 | C76: Ad Group 1.1 | D76: Mobile | E76: 88 | F76: 2241 | G76: 49.64 | H76: 2.63 | I76: 17 | J76: 500
A77: 2019-01-05 | B77: Campaign 1 | C77: Ad Group 1.3 | D77: Desktop | E77: 40 | F77: 890 | G77: 47.9 | H77: 2.61 | I77: 7 | J77: 250
A78: 2019-01-05 | B78: Campaign 1 | C78: Ad Group 1.3 | D78: Mobile | E78: 30 | F78: 658 | G78: 40 | H78: 2.14 | I78: 6 | J78: 200
A79: 2019-01-05 | B79: Campaign 2 | C79: Ad Group 2.1 | D79: Desktop | E79: 30 | F79: 310 | G79: 16.9 | H79: 1.55 | I79: 6 | J79: 250
A80: 2019-01-05 | B80: Campaign 2 | C80: Ad Group 2.1 | D80: Mobile | E80: 25 | F80: 262 | G80: 16.14 | H80: 1.27 | I80: 6 | J80: 250
A81: 2019-01-05 | B81: Campaign 2 | C81: Ad Group 2.1 | D81: Tablet | E81: 10 | F81: 10 | G81: 4.1 | H81: 1 | I81: 2 | J81: 100
A82: 2019-01-05 | B82: Campaign 2 | C82: Ad Group 2.2 | D82: Desktop | E82: 10 | F82: 630 | G82: 1.4 | H82: 2.03 | I82: 2 | J82: 100
A83: 2019-01-05 | B83: Campaign 2 | C83: Ad Group 2.2 | D83: Mobile | E83: 8 | F83: 502 | G83: 1.26 | H83: 1.66 | I83: 2 | J83: 100
A84: 2019-01-05 | B84: Campaign 3 | C84: Ad Group 3.1 | D84: Desktop | E84: 70 | F84: 70 | G84: 110.6 | H84: 1 | I84: 15 | J84: 600
A85: 2019-01-05 | B85: Campaign 3 | C85: Ad Group 3.1 | D85: Mobile | E85: 63 | F85: 63 | G85: 112.48 | H85: 1 | I85: 17 | J85: 600
A86: 2019-01-05 | B86: Campaign 4 | C86: Ad Group 4.1 | D86: Desktop | E86: 110 | F86: 3500 | G86: 121.4 | H86: 2.9 | I86: 18 | J86: 600
A87: 2019-01-05 | B87: Campaign 4 | C87: Ad Group 4.1 | D87: Mobile | E87: 78 | F87: 2485 | G87: 97.4 | H87: 2.38 | I87: 16 | J87: 450
A88: 2019-01-05 | B88: Campaign 4 | C88: Ad Group 4.2 | D88: Desktop | E88: 40 | F88: 340 | G88: 220.2 | H88: 1.12 | I88: 9 | J88: 350
A89: 2019-01-05 | B89: Campaign 4 | C89: Ad Group 4.2 | D89: Mobile | E89: 36 | F89: 302 | G89: 220.96 | H89: 1 | I89: 10 | J89: 350
A90: 2019-01-05 | B90: Campaign 4 | C90: Ad Group 4.3 | D90: Desktop | E90: 20 | F90: 1140 | G90: 34 | H90: 1.7 | I90: 4 | J90: 150
A91: 2019-01-05 | B91: Campaign 4 | C91: Ad Group 4.3 | D91: Mobile | E91: 17 | F91: 946 | G91: 31.89 | H91: 1.39 | I91: 4 | J91: 150
A92: 2019-01-05 | B92: Campaign 4 | C92: Ad Group 4.3 | D92: Tablet | E92: 10 | F92: 60 | G92: 38.3 | H92: 2 | I92: 2 | J92: 100
A93: 2019-01-05 | B93: Campaign 5 | C93: Ad Group 5.1 | D93: Desktop | E93: 40 | F93: 6150 | G93: 111.3 | H93: 3.01 | I93: 6 | J93: 200
A94: 2019-01-05 | B94: Campaign 5 | C94: Ad Group 5.1 | D94: Mobile | E94: 28 | F94: 4299 | G94: 87.91 | H94: 2.47 | I94: 5 | J94: 150
A95: 2019-01-05 | B95: Campaign 5 | C95: Ad Group 5.1 | D95: Tablet | E95: 10 | F95: 790 | G95: 5.5 | H95: 2.39 | I95: 2 | J95: 50
A96: 2019-01-05 | B96: Campaign 5 | C96: Ad Group 5.3 | D96: Desktop | E96: 70 | F96: 1230 | G96: 177.1 | H96: 2.5 | I96: 12 | J96: 450
A97: 2019-01-05 | B97: Campaign 5 | C97: Ad Group 5.3 | D97: Mobile | E97: 53 | F97: 923 | G97: 150.09 | H97: 2.05 | I97: 11 | J97: 350
A98: 2019-01-06 | B98: Campaign 1 | C98: Ad Group 1.1 | D98: Desktop | E98: 40 | F98: 2540 | G98: 11.9 | H98: 3.68 | I98: 6 | J98: 200
A99: 2019-01-06 | B99: Campaign 1 | C99: Ad Group 1.1 | D99: Mobile | E99: 25 | F99: 1605 | G99: 8.5 | H99: 3.02 | I99: 5 | J99: 150
A100: 2019-01-06 | B100: Campaign 1 | C100: Ad Group 1.3 | D100: Desktop | E100: 20 | F100: 810 | G100: 5.6 | H100: 2.11 | I100: 4 | J100: 150
A101: 2019-01-06 | B101: Campaign 1 | C101: Ad Group 1.3 | D101: Mobile | E101: 16 | F101: 639 | G101: 4.99 | H101: 1.73 | I101: 4 | J101: 150
A102: 2019-01-06 | B102: Campaign 2 | C102: Ad Group 2.2 | D102: Desktop | E102: 10 | F102: 560 | G102: 2.9 | H102: 2.45 | I102: 2 | J102: 50
A103: 2019-01-06 | B103: Campaign 2 | C103: Ad Group 2.2 | D103: Mobile | E103: 8 | F103: 423 | G103: 2.47 | H103: 2.01 | I103: 2 | J103: 50
A104: 2019-01-06 | B104: Campaign 4 | C104: Ad Group 4.1 | D104: Desktop | E104: 60 | F104: 2840 | G104: 46.7 | H104: 2.72 | I104: 10 | J104: 350
A105: 2019-01-06 | B105: Campaign 4 | C105: Ad Group 4.1 | D105: Mobile | E105: 44 | F105: 2068 | G105: 38.42 | H105: 2.23 | I105: 9 | J105: 300
A106: 2019-01-06 | B106: Campaign 4 | C106: Ad Group 4.1 | D106: Tablet | E106: 10 | F106: 170 | G106: 5.4 | H106: 2.94 | I106: 2 | J106: 50
A107: 2019-01-06 | B107: Campaign 4 | C107: Ad Group 4.2 | D107: Desktop | E107: 20 | F107: 310 | G107: 54.4 | H107: 1.19 | I107: 4 | J107: 150
A108: 2019-01-06 | B108: Campaign 4 | C108: Ad Group 4.2 | D108: Mobile | E108: 18 | F108: 273 | G108: 54.16 | H108: 1 | I108: 4 | J108: 150
A109: 2019-01-06 | B109: Campaign 4 | C109: Ad Group 4.2 | D109: Tablet | E109: 10 | F109: 10 | G109: 33.2 | H109: 1 | I109: 2 | J109: 100
A110: 2019-01-06 | B110: Campaign 4 | C110: Ad Group 4.3 | D110: Desktop | E110: 80 | F110: 910 | G110: 177.8 | H110: 1.9 | I110: 15 | J110: 550
A111: 2019-01-06 | B111: Campaign 4 | C111: Ad Group 4.3 | D111: Mobile | E111: 65 | F111: 737 | G111: 162.74 | H111: 1.56 | I111: 15 | J111: 500
A112: 2019-01-06 | B112: Campaign 5 | C112: Ad Group 5.1 | D112: Desktop | E112: 70 | F112: 4920 | G112: 60.3 | H112: 2.87 | I112: 11 | J112: 400
A113: 2019-01-06 | B113: Campaign 5 | C113: Ad Group 5.1 | D113: Mobile | E113: 50 | F113: 3508 | G113: 48.58 | H113: 2.35 | I113: 10 | J113: 300
A114: 2019-01-06 | B114: Campaign 5 | C114: Ad Group 5.2 | D114: Desktop | E114: 10 | F114: 100 | G114: 1.4 | H114: 1.2 | I114: 2 | J114: 100
A115: 2019-01-06 | B115: Campaign 5 | C115: Ad Group 5.2 | D115: Mobile | E115: 9 | F115: 88 | G115: 1.39 | H115: 1 | I115: 2 | J115: 100
A116: 2019-01-06 | B116: Campaign 5 | C116: Ad Group 5.3 | D116: Desktop | E116: 30 | F116: 1170 | G116: 26.5 | H116: 2.5 | I116: 5 | J116: 200
A117: 2019-01-06 | B117: Campaign 5 | C117: Ad Group 5.3 | D117: Mobile | E117: 23 | F117: 878 | G117: 22.46 | H117: 2.05 | I117: 5 | J117: 150
A118: 2019-01-06 | B118: Campaign 5 | C118: Ad Group 5.3 | D118: Tablet | E118: 10 | F118: 110 | G118: 24.1 | H118: 2.18 | I118: 2 | J118: 50
A119: 2019-01-07 | B119: Campaign 1 | C119: Ad Group 1.1 | D119: Desktop | E119: 10 | F119: 1390 | G119: 1.4 | H119: 3.63 | I119: 1 | J119: 50
A120: 2019-01-07 | B120: Campaign 1 | C120: Ad Group 1.1 | D120: Mobile | E120: 6 | F120: 885 | G120: 1.01 | H120: 2.98 | I120: 1 | J120: 50
A121: 2019-01-07 | B121: Campaign 1 | C121: Ad Group 1.2 | D121: Desktop | E121: 20 | F121: 120 | G121: 32.4 | H121: 1.92 | I121: 4 | J121: 150
A122: 2019-01-07 | B122: Campaign 1 | C122: Ad Group 1.2 | D122: Mobile | E122: 16 | F122: 97 | G122: 29.58 | H122: 1.57 | I122: 4 | J122: 150
A123: 2019-01-07 | B123: Campaign 1 | C123: Ad Group 1.3 | D123: Desktop | E123: 20 | F123: 540 | G123: 32.9 | H123: 2 | I123: 4 | J123: 150
A124: 2019-01-07 | B124: Campaign 1 | C124: Ad Group 1.3 | D124: Mobile | E124: 16 | F124: 432 | G124: 29.74 | H124: 1.64 | I124: 4 | J124: 150
A125: 2019-01-07 | B125: Campaign 1 | C125: Ad Group 1.3 | D125: Tablet | E125: 10 | F125: 60 | G125: 4.2 | H125: 1.17 | I125: 2 | J125: 100
A126: 2019-01-07 | B126: Campaign 2 | C126: Ad Group 2.1 | D126: Desktop | E126: 20 | F126: 70 | G126: 14.3 | H126: 2 | I126: 4 | J126: 150
A127: 2019-01-07 | B127: Campaign 2 | C127: Ad Group 2.1 | D127: Mobile | E127: 16 | F127: 56 | G127: 12.93 | H127: 1.64 | I127: 4 | J127: 150
A128: 2019-01-07 | B128: Campaign 2 | C128: Ad Group 2.2 | D128: Desktop | E128: 30 | F128: 250 | G128: 8.7 | H128: 2.48 | I128: 5 | J128: 200
A129: 2019-01-07 | B129: Campaign 2 | C129: Ad Group 2.2 | D129: Mobile | E129: 23 | F129: 188 | G129: 7.39 | H129: 2.03 | I129: 5 | J129: 150
A130: 2019-01-07 | B130: Campaign 4 | C130: Ad Group 4.1 | D130: Desktop | E130: 20 | F130: 1420 | G130: 6.9 | H130: 3.31 | I130: 3 | J130: 100
A131: 2019-01-07 | B131: Campaign 4 | C131: Ad Group 4.1 | D131: Mobile | E131: 13 | F131: 950 | G131: 5.22 | H131: 2.71 | I131: 2 | J131: 50
A132: 2019-01-07 | B132: Campaign 4 | C132: Ad Group 4.2 | D132: Desktop | E132: 20 | F132: 130 | G132: 83.6 | H132: 1.08 | I132: 4 | J132: 150
A133: 2019-01-07 | B133: Campaign 4 | C133: Ad Group 4.2 | D133: Mobile | E133: 18 | F133: 116 | G133: 84.27 | H133: 1 | I133: 4 | J133: 150
A134: 2019-01-07 | B134: Campaign 4 | C134: Ad Group 4.3 | D134: Desktop | E134: 20 | F134: 390 | G134: 65.1 | H134: 2.1 | I134: 4 | J134: 150
A135: 2019-01-07 | B135: Campaign 4 | C135: Ad Group 4.3 | D135: Mobile | E135: 16 | F135: 308 | G135: 58.11 | H135: 1.72 | I135: 4 | J135: 150
A136: 2019-01-07 | B136: Campaign 5 | C136: Ad Group 5.1 | D136: Desktop | E136: 20 | F136: 1730 | G136: 8.3 | H136: 2.85 | I136: 3 | J136: 100
A137: 2019-01-07 | B137: Campaign 5 | C137: Ad Group 5.1 | D137: Mobile | E137: 14 | F137: 1237 | G137: 6.71 | H137: 2.34 | I137: 3 | J137: 100
A138: 2019-01-07 | B138: Campaign 5 | C138: Ad Group 5.3 | D138: Desktop | E138: 20 | F138: 470 | G138: 5.6 | H138: 2.21 | I138: 4 | J138: 150
A139: 2019-01-07 | B139: Campaign 5 | C139: Ad Group 5.3 | D139: Mobile | E139: 16 | F139: 366 | G139: 4.93 | H139: 1.81 | I139: 4 | J139: 150
A140: 2019-01-08 | B140: Campaign 1 | C140: Ad Group 1.1 | D140: Desktop | E140: 10 | F140: 930 | G140: 4.2 | H140: 3.32 | I140: 2 | J140: 50
A141: 2019-01-08 | B141: Campaign 1 | C141: Ad Group 1.1 | D141: Mobile | E141: 7 | F141: 621 | G141: 3.17 | H141: 2.72 | I141: 2 | J141: 50
A142: 2019-01-08 | B142: Campaign 1 | C142: Ad Group 1.3 | D142: Desktop | E142: 20 | F142: 440 | G142: 13.9 | H142: 2.41 | I142: 4 | J142: 150
A143: 2019-01-08 | B143: Campaign 1 | C143: Ad Group 1.3 | D143: Mobile | E143: 15 | F143: 334 | G143: 11.92 | H143: 1.98 | I143: 4 | J143: 150
A144: 2019-01-08 | B144: Campaign 1 | C144: Ad Group 1.3 | D144: Tablet | E144: 10 | F144: 20 | G144: 5 | H144: 3 | I144: 2 | J144: 50
A145: 2019-01-08 | B145: Campaign 2 | C145: Ad Group 2.1 | D145: Desktop | E145: 30 | F145: 120 | G145: 44.7 | H145: 2 | I145: 6 | J145: 250
A146: 2019-01-08 | B146: Campaign 2 | C146: Ad Group 2.1 | D146: Mobile | E146: 24 | F146: 96 | G146: 40.41 | H146: 1.64 | I146: 6 | J146: 200
A147: 2019-01-08 | B147: Campaign 2 | C147: Ad Group 2.2 | D147: Desktop | E147: 20 | F147: 220 | G147: 7.1 | H147: 2.5 | I147: 4 | J147: 150
A148: 2019-01-08 | B148: Campaign 2 | C148: Ad Group 2.2 | D148: Mobile | E148: 15 | F148: 165 | G148: 6.02 | H148: 2.05 | I148: 4 | J148: 100
A149: 2019-01-08 | B149: Campaign 3 | C149: Ad Group 3.1 | D149: Desktop | E149: 30 | F149: 30 | G149: 129.5 | H149: 1 | I149: 7 | J149: 300
A150: 2019-01-08 | B150: Campaign 3 | C150: Ad Group 3.1 | D150: Mobile | E150: 27 | F150: 27 | G150: 131.7 | H150: 1 | I150: 8 | J150: 300
A151: 2019-01-08 | B151: Campaign 4 | C151: Ad Group 4.1 | D151: Desktop | E151: 30 | F151: 1150 | G151: 22.1 | H151: 3.11 | I151: 5 | J151: 150
A152: 2019-01-08 | B152: Campaign 4 | C152: Ad Group 4.1 | D152: Mobile | E152: 21 | F152: 792 | G152: 17.21 | H152: 2.55 | I152: 4 | J152: 100
A153: 2019-01-08 | B153: Campaign 4 | C153: Ad Group 4.2 | D153: Desktop | E153: 20 | F153: 140 | G153: 107 | H153: 1.5 | I153: 4 | J153: 150
A154: 2019-01-08 | B154: Campaign 4 | C154: Ad Group 4.2 | D154: Mobile | E154: 17 | F154: 119 | G154: 102.77 | H154: 1.23 | I154: 4 | J154: 150
A155: 2019-01-08 | B155: Campaign 4 | C155: Ad Group 4.3 | D155: Desktop | E155: 20 | F155: 450 | G155: 70.8 | H155: 2.27 | I155: 4 | J155: 150
A156: 2019-01-08 | B156: Campaign 4 | C156: Ad Group 4.3 | D156: Mobile | E156: 15 | F156: 348 | G156: 61.84 | H156: 1.86 | I156: 4 | J156: 150
A157: 2019-01-09 | B157: Campaign 1 | C157: Ad Group 1.1 | D157: Desktop | E157: 60 | F157: 3140 | G157: 39 | H157: 3.3 | I157: 9 | J157: 300
A158: 2019-01-09 | B158: Campaign 1 | C158: Ad Group 1.1 | D158: Mobile | E158: 40 | F158: 2104 | G158: 29.53 | H158: 2.71 | I158: 7 | J158: 200
A159: 2019-01-09 | B159: Campaign 1 | C159: Ad Group 1.1 | D159: Tablet | E159: 20 | F159: 550 | G159: 12.9 | H159: 3.16 | I159: 3 | J159: 100
A160: 2019-01-09 | B160: Campaign 1 | C160: Ad Group 1.2 | D160: Desktop | E160: 10 | F160: 30 | G160: 4.4 | H160: 2 | I160: 2 | J160: 100
A161: 2019-01-09 | B161: Campaign 1 | C161: Ad Group 1.2 | D161: Mobile | E161: 8 | F161: 24 | G161: 3.98 | H161: 1.64 | I161: 2 | J161: 100
A162: 2019-01-09 | B162: Campaign 1 | C162: Ad Group 1.3 | D162: Desktop | E162: 60 | F162: 920 | G162: 54 | H162: 1.92 | I162: 12 | J162: 450
A163: 2019-01-09 | B163: Campaign 1 | C163: Ad Group 1.3 | D163: Mobile | E163: 48 | F163: 743 | G163: 49.3 | H163: 1.57 | I163: 12 | J163: 400
A164: 2019-01-09 | B164: Campaign 2 | C164: Ad Group 2.1 | D164: Desktop | E164: 60 | F164: 510 | G164: 59.3 | H164: 1.76 | I164: 12 | J164: 450
A165: 2019-01-09 | B165: Campaign 2 | C165: Ad Group 2.1 | D165: Mobile | E165: 49 | F165: 420 | G165: 55.22 | H165: 1.44 | I165: 12 | J165: 400
A166: 2019-01-09 | B166: Campaign 2 | C166: Ad Group 2.2 | D166: Desktop | E166: 60 | F166: 740 | G166: 43.8 | H166: 2.41 | I166: 11 | J166: 400
A167: 2019-01-09 | B167: Campaign 2 | C167: Ad Group 2.2 | D167: Mobile | E167: 46 | F167: 562 | G167: 37.57 | H167: 1.98 | I167: 10 | J167: 350
A168: 2019-01-09 | B168: Campaign 3 | C168: Ad Group 3.1 | D168: Desktop | E168: 10 | F168: 30 | G168: 6.9 | H168: 1 | I168: 2 | J168: 100
A169: 2019-01-09 | B169: Campaign 3 | C169: Ad Group 3.1 | D169: Mobile | E169: 9 | F169: 27 | G169: 7.02 | H169: 1 | I169: 2 | J169: 100
A170: 2019-01-09 | B170: Campaign 4 | C170: Ad Group 4.1 | D170: Desktop | E170: 90 | F170: 3170 | G170: 78.4 | H170: 2.76 | I170: 15 | J170: 550
A171: 2019-01-09 | B171: Campaign 4 | C171: Ad Group 4.1 | D171: Mobile | E171: 65 | F171: 2295 | G171: 64.14 | H171: 2.26 | I171: 13 | J171: 450
A172: 2019-01-09 | B172: Campaign 4 | C172: Ad Group 4.2 | D172: Desktop | E172: 50 | F172: 460 | G172: 182.7 | H172: 1.22 | I172: 11 | J172: 450
A173: 2019-01-09 | B173: Campaign 4 | C173: Ad Group 4.2 | D173: Mobile | E173: 44 | F173: 404 | G173: 181.26 | H173: 1 | I173: 12 | J173: 450
A174: 2019-01-09 | B174: Campaign 4 | C174: Ad Group 4.3 | D174: Desktop | E174: 60 | F174: 1070 | G174: 104.8 | H174: 1.64 | I174: 12 | J174: 450
A175: 2019-01-09 | B175: Campaign 4 | C175: Ad Group 4.3 | D175: Mobile | E175: 50 | F175: 895 | G175: 99 | H175: 1.34 | I175: 12 | J175: 400
A176: 2019-01-09 | B176: Campaign 5 | C176: Ad Group 5.1 | D176: Desktop | E176: 100 | F176: 6180 | G176: 138.9 | H176: 2.91 | I176: 16 | J176: 550
A177: 2019-01-09 | B177: Campaign 5 | C177: Ad Group 5.1 | D177: Mobile | E177: 71 | F177: 4382 | G177: 111.28 | H177: 2.39 | I177: 14 | J177: 450
A178: 2019-01-09 | B178: Campaign 5 | C178: Ad Group 5.1 | D178: Tablet | E178: 10 | F178: 530 | G178: 28.2 | H178: 2.53 | I178: 2 | J178: 50
A179: 2019-01-09 | B179: Campaign 5 | C179: Ad Group 5.2 | D179: Desktop | E179: 20 | F179: 180 | G179: 34 | H179: 1.39 | I179: 4 | J179: 150
A180: 2019-01-09 | B180: Campaign 5 | C180: Ad Group 5.2 | D180: Mobile | E180: 17 | F180: 155 | G180: 33.08 | H180: 1.14 | I180: 4 | J180: 150
A181: 2019-01-09 | B181: Campaign 5 | C181: Ad Group 5.3 | D181: Desktop | E181: 70 | F181: 1090 | G181: 73.5 | H181: 2.35 | I181: 13 | J181: 500
A182: 2019-01-09 | B182: Campaign 5 | C182: Ad Group 5.3 | D182: Mobile | E182: 54 | F182: 834 | G182: 63.54 | H182: 1.93 | I182: 12 | J182: 400
A183: 2019-01-10 | B183: Campaign 1 | C183: Ad Group 1.1 | D183: Desktop | E183: 80 | F183: 3730 | G183: 48.2 | H183: 3.56 | I183: 11 | J183: 350
A184: 2019-01-10 | B184: Campaign 1 | C184: Ad Group 1.1 | D184: Mobile | E184: 52 | F184: 2402 | G184: 35.08 | H184: 2.92 | I184: 9 | J184: 250
A185: 2019-01-10 | B185: Campaign 1 | C185: Ad Group 1.2 | D185: Desktop | E185: 20 | F185: 70 | G185: 12.2 | H185: 1.29 | I185: 4 | J185: 150
A186: 2019-01-10 | B186: Campaign 1 | C186: Ad Group 1.2 | D186: Mobile | E186: 17 | F186: 61 | G186: 12.01 | H186: 1.06 | I186: 4 | J186: 150
A187: 2019-01-10 | B187: Campaign 1 | C187: Ad Group 1.3 | D187: Desktop | E187: 90 | F187: 1320 | G187: 93 | H187: 2.15 | I187: 17 | J187: 650
A188: 2019-01-10 | B188: Campaign 1 | C188: Ad Group 1.3 | D188: Mobile | E188: 71 | F188: 1036 | G188: 82.5 | H188: 1.76 | I188: 16 | J188: 550
A189: 2019-01-10 | B189: Campaign 2 | C189: Ad Group 2.1 | D189: Desktop | E189: 60 | F189: 410 | G189: 63.4 | H189: 1.71 | I189: 12 | J189: 450
A190: 2019-01-10 | B190: Campaign 2 | C190: Ad Group 2.1 | D190: Mobile | E190: 50 | F190: 340 | G190: 59.39 | H190: 1.4 | I190: 12 | J190: 400
A191: 2019-01-10 | B191: Campaign 2 | C191: Ad Group 2.2 | D191: Desktop | E191: 50 | F191: 770 | G191: 42.8 | H191: 2.44 | I191: 9 | J191: 350
A192: 2019-01-10 | B192: Campaign 2 | C192: Ad Group 2.2 | D192: Mobile | E192: 38 | F192: 582 | G192: 36.56 | H192: 2 | I192: 8 | J192: 300
A193: 2019-01-10 | B193: Campaign 2 | C193: Ad Group 2.2 | D193: Tablet | E193: 10 | F193: 40 | G193: 1.4 | H193: 2 | I193: 2 | J193: 100
A194: 2019-01-10 | B194: Campaign 3 | C194: Ad Group 3.1 | D194: Desktop | E194: 40 | F194: 60 | G194: 199.6 | H194: 1.17 | I194: 9 | J194: 350
A195: 2019-01-10 | B195: Campaign 3 | C195: Ad Group 3.1 | D195: Mobile | E195: 35 | F195: 53 | G195: 199.16 | H195: 1 | I195: 10 | J195: 350
A196: 2019-01-10 | B196: Campaign 4 | C196: Ad Group 4.1 | D196: Desktop | E196: 120 | F196: 4150 | G196: 119.6 | H196: 2.73 | I196: 20 | J196: 700
A197: 2019-01-10 | B197: Campaign 4 | C197: Ad Group 4.1 | D197: Mobile | E197: 87 | F197: 3017 | G197: 98.25 | H197: 2.24 | I197: 18 | J197: 550
A198: 2019-01-10 | B198: Campaign 4 | C198: Ad Group 4.2 | D198: Desktop | E198: 60 | F198: 510 | G198: 249.5 | H198: 1.08 | I198: 13 | J198: 550
A199: 2019-01-10 | B199: Campaign 4 | C199: Ad Group 4.2 | D199: Mobile | E199: 54 | F199: 455 | G199: 251.49 | H199: 1 | I199: 14 | J199: 550
A200: 2019-01-10 | B200: Campaign 4 | C200: Ad Group 4.3 | D200: Desktop | E200: 70 | F200: 1240 | G200: 152.8 | H200: 1.64 | I200: 14 | J200: 550
... 2333 more rows

Sheet Positions (hidden)
A1: Google Adwords - Ad Position Analysis | F1: Campaign | I1: =IF(ISBLANK(F2),"*",F2) -> * | J1: Ad Group | M1: =IF(ISBLANK(J2),"*",J2) -> * | N1: Device:
A2: Summary | O2: =IF(ISBLANK($N$2),"*",$N$2) -> *
A3: © www.excel-skills.com
A4: Current Period | D4: From: | E4: =Setup!$C$5 -> 2019-04-01 | F4: To: | G4: =Setup!$C$6 -> 2019-04-30
A5: Position Range | B5: Low | C5: High | D5: Imp | E5: Clicks | F5: CTR | G5: Cost | H5: CPC | I5: Conv | J5: Revenue | K5: Cost / Conv | L5: Conv Rate | M5: ROI | N5: Spread
A6: ="Between "&TEXT(B6,"0.0")&" & "&TEXT(C6,"0.0") -> Between 1.0 & 1.5 | B6: 1 | C6: 1.5 | D6: =SUMIFS(GImpressions,GDate,">="&$E$4,GDate,"<="&$G$4,GCampaign,$I$1,GAdgroup,$M$1,GDevice,$O$2,GPosition,">="&$B6,GPosition,"<"&$C6) -> 51291 | E6: =SUMIFS(GClicks,GDate,">="&$E$4,GDate,"<="&$G$4,GCampaign,$I$1,GAdgroup,$M$1,GDevice,$O$2,GPosition,">="&$B6,GPosition,"<"&$C6) -> 7979 | F6: =IF(D6=0,0,E6/D6) -> 0.1555633542 | G6: =SUMIFS(GCost,GDate,">="&$E$4,GDate,"<="&$G$4,GCampaign,$I$1,GAdgroup,$M$1,GDevice,$O$2,GPosition,">="&$B6,GPosition,"<"&$C6) -> 21037.39 | H6: =IF(E6=0,0,G6/E6) -> 2.636594811 | I6: =SUMIFS(GConversions,GDate,">="&$E$4,GDate,"<="&$G$4,GCampaign,$I$1,GAdgroup,$M$1,GDevice,$O$2,GPosition,">="&$B6,GPosition,"<"&$C6) -> 1868 | J6: =SUMIFS(GRevenue,GDate,">="&$E$4,GDate,"<="&$G$4,GCampaign,$I$1,GAdgroup,$M$1,GDevice,$O$2,GPosition,">="&$B6,GPosition,"<"&$C6) -> 72050 | K6: =IF(I6=0,0,G6/I6) -> 11.26198608 | L6: =IF(E6=0,0,I6/E6) -> 0.2341145507 | M6: =IF(G6=0,0,J6/G6) -> 3.424854509 | N6: =IF(E$15=0,0,E6/E$15) -> 0.4363924743
A7: ="Between "&TEXT(B7,"0.0")&" & "&TEXT(C7,"0.0") -> Between 1.5 & 2.0 | B7: =OFFSET(C7,-1,0,1,1) -> 1.5 | C7: 2 | D7: 43375 | E7: 5095 | F7: =IF(D7=0,0,E7/D7) -> 0.1174639769 | G7: 9456.13 | H7: =IF(E7=0,0,G7/E7) -> 1.855962709 | I7: 1082 | J7: 40200 | K7: =IF(I7=0,0,G7/I7) -> 8.739491682 | L7: =IF(E7=0,0,I7/E7) -> 0.2123650638 | M7: =IF(G7=0,0,J7/G7) -> 4.25121059 | N7: 0.2786589368
A8: Between 2.0 & 2.5 | B8: 2 | C8: 2.5 | D8: 24150 | E8: 2499 | F8: 0.1034782609 | G8: 3385.54 | H8: 1.354757903 | I8: 489 | J8: 17300 | K8: 6.923394683 | L8: 0.1956782713 | M8: 5.109967686 | N8: 0.136676876
A9: Between 2.5 & 3.0 | B9: 2.5 | C9: 3 | D9: 18660 | E9: 1424 | F9: 0.07631296892 | G9: 1588.57 | H9: 1.11556882 | I9: 256 | J9: 7950 | K9: 6.205351563 | L9: 0.1797752809 | M9: 5.004500903 | N9: 0.07788230147
A10: Between 3.0 & 3.5 | B10: 3 | C10: 3.5 | D10: 13190 | E10: 973 | F10: 0.07376800607 | G10: 805.37 | H10: 0.8277183967 | I10: 153 | J10: 4850 | K10: 5.263856209 | L10: 0.1572456321 | M10: 6.022076809 | N10: 0.05321592649
A11: Between 3.5 & 4.0 | B11: 3.5 | C11: 4 | D11: 3280 | E11: 220 | F11: 0.06707317073 | G11: 182.3 | H11: 0.8286363636 | I11: 30 | J11: 1050 | K11: 6.076666667 | L11: 0.1363636364 | M11: 5.759736698 | N11: 0.01203237804
A12: Between 4.0 & 5.0 | B12: 4 | C12: 5 | D12: 1033 | E12: 84 | F12: 0.08131655373 | G12: 73.99 | H12: 0.8808333333 | I12: 11 | J12: 300 | K12: 6.726363636 | L12: 0.130952381 | M12: 4.054601973 | N12: 0.004594180704
A13: Between 5.0 & 6.0 | B13: 5 | C13: 6 | D13: 30 | E13: 10 | F13: 0.3333333333 | G13: 33.7 | H13: 3.37 | I13: 1 | J13: 50 | K13: 33.7 | L13: 0.1 | M13: 1.483679525 | N13: 0.0005469262743
A14: =TEXT(OFFSET(C14,-1,0,1,1),"0.0")&"+" -> 6.0+ | B14: 6 | C14: 99 | D14: 0 | E14: 0 | F14: 0 | G14: 0 | H14: 0 | I14: 0 | J14: 0 | K14: 0 | L14: 0 | M14: 0 | N14: 0
A15: Total | D15: =SUM(D6:D14) -> 155009 | E15: =SUM(E6:E14) -> 18284 | F15: 0.1179544414 | G15: =SUM(G6:G14) -> 36562.99 | H15: 1.99972599 | I15: =SUM(I6:I14) -> 3890 | J15: =SUM(J6:J14) -> 143750 | K15: =IF(I15=0,0,G15/I15) -> 9.399226221 | L15: 0.2127543207 | M15: 3.931571242 | N15: 1
A17: Previous Period 1 | D17: From: | E17: =Setup!$D$5 -> 2019-03-01 | F17: To: | G17: =Setup!$D$6 -> 2019-03-31
A18: Position Range | B18: Low | C18: High | D18: Imp | E18: Clicks | F18: CTR | G18: Cost | H18: CPC | I18: Conv | J18: Revenue | K18: Cost / Conv | L18: Conv Rate | M18: ROI | N18: Spread
A19: ="Between "&TEXT(B19,"0.0")&" & "&TEXT(C19,"0.0") -> Between 1.0 & 1.5 | B19: 1 | C19: 1.5 | D19: =SUMIFS(GImpressions,GDate,">="&$E$17,GDate,"<="&$G$17,GCampaign,$I$1,GAdgroup,$M$1,GDevice,$O$2,GPosition,">="&$B19,GPosition,"<"&$C19) -> 69961 | E19: =SUMIFS(GClicks,GDate,">="&$E$17,GDate,"<="&$G$17,GCampaign,$I$1,GAdgroup,$M$1,GDevice,$O$2,GPosition,">="&$B19,GPosition,"<"&$C19) -> 9749 | F19: =IF(D19=0,0,E19/D19) -> 0.1393490659 | G19: =SUMIFS(GCost,GDate,">="&$E$17,GDate,"<="&$G$17,GCampaign,$I$1,GAdgroup,$M$1,GDevice,$O$2,GPosition,">="&$B19,GPosition,"<"&$C19) -> 24183 | H19: =IF(E19=0,0,G19/E19) -> 2.480562109 | I19: =SUMIFS(GConversions,GDate,">="&$E$17,GDate,"<="&$G$17,GCampaign,$I$1,GAdgroup,$M$1,GDevice,$O$2,GPosition,">="&$B19,GPosition,"<"&$C19) -> 2274 | J19: =SUMIFS(GRevenue,GDate,">="&$E$17,GDate,"<="&$G$17,GCampaign,$I$1,GAdgroup,$M$1,GDevice,$O$2,GPosition,">="&$B19,GPosition,"<"&$C19) -> 87150 | K19: =IF(I19=0,0,G19/I19) -> 10.63456464 | L19: =IF(E19=0,0,I19/E19) -> 0.2332546928 | M19: =IF(G19=0,0,J19/G19) -> 3.603771244 | N19: =IF(E$28=0,0,E19/E$28) -> 0.3511128719
A20: ="Between "&TEXT(B20,"0.0")&" & "&TEXT(C20,"0.0") -> Between 1.5 & 2.0 | B20: =OFFSET(C20,-1,0,1,1) -> 1.5 | C20: 2 | D20: 53052 | E20: 5846 | F20: =IF(D20=0,0,E20/D20) -> 0.1101937721 | G20: 8333.13 | H20: =IF(E20=0,0,G20/E20) -> 1.425441327 | I20: 1258 | J20: 45850 | K20: =IF(I20=0,0,G20/I20) -> 6.624109698 | L20: =IF(E20=0,0,I20/E20) -> 0.2151898734 | M20: =IF(G20=0,0,J20/G20) -> 5.502134252 | N20: =IF(E$28=0,0,E20/E$28) -> 0.2105452712
A21: Between 2.0 & 2.5 | B21: 2 | C21: 2.5 | D21: 56292 | E21: 4497 | F21: 0.07988701769 | G21: 5794.97 | H21: 1.288630198 | I21: 867 | J21: 30250 | K21: 6.683933103 | L21: 0.1927951968 | M21: 5.22004428 | N21: 0.1619606713
A22: Between 2.5 & 3.0 | B22: 2.5 | C22: 3 | D22: 79523 | E22: 3453 | F22: 0.0434214001 | G22: 4557.7 | H22: 1.319924703 | I22: 612 | J22: 19300 | K22: 7.447222222 | L22: 0.1772371851 | M22: 4.234592009 | N22: 0.1243607289
A23: Between 3.0 & 3.5 | B23: 3 | C23: 3.5 | D23: 89169 | E23: 3361 | F23: 0.0376924716 | G23: 4245.36 | H23: 1.26312407 | I23: 525 | J23: 16850 | K23: 8.0864 | L23: 0.1562035109 | M23: 3.969039139 | N23: 0.1210473241
A24: Between 3.5 & 4.0 | B24: 3.5 | C24: 4 | D24: 15100 | E24: 750 | F24: 0.04966887417 | G24: 551.8 | H24: 0.7357333333 | I24: 104 | J24: 3500 | K24: 5.305769231 | L24: 0.1386666667 | M24: 6.342877854 | N24: 0.02701145286
A25: Between 4.0 & 5.0 | B25: 4 | C25: 5 | D25: 1000 | E25: 100 | F25: 0.1 | G25: 115.1 | H25: 1.151 | I25: 13 | J25: 400 | K25: 8.853846154 | L25: 0.13 | M25: 3.475238923 | N25: 0.003601527047
A26: Between 5.0 & 6.0 | B26: 5 | C26: 6 | D26: 40 | E26: 10 | F26: 0.25 | G26: 8.7 | H26: 0.87 | I26: 1 | J26: 50 | K26: 8.7 | L26: 0.1 | M26: 5.747126437 | N26: 0.0003601527047
A27: =TEXT(OFFSET(C27,-1,0,1,1),"0.0")&"+" -> 6.0+ | B27: 6 | C27: 99 | D27: 0 | E27: 0 | F27: 0 | G27: 0 | H27: 0 | I27: 0 | J27: 0 | K27: 0 | L27: 0 | M27: 0 | N27: 0
A28: Total | D28: =SUM(D19:D27) -> 364137 | E28: =SUM(E19:E27) -> 27766 | F28: 0.07625152072 | G28: =SUM(G19:G27) -> 47789.76 | H28: 1.721161132 | I28: =SUM(I19:I27) -> 5654 | J28: =SUM(J19:J27) -> 203350 | K28: =IF(I28=0,0,G28/I28) -> 8.452380615 | L28: 0.2036303393 | M28: 4.255095652 | N28: 1
A30: Previous Period 2 | D30: From: | E30: =Setup!$F$5 -> 2019-02-01 | F30: To: | G30: =Setup!$F$6 -> 2019-02-28
A31: Position Range | B31: Low | C31: High | D31: Imp | E31: Clicks | F31: CTR | G31: Cost | H31: CPC | I31: Conv | J31: Revenue | K31: Cost / Conv | L31: Conv Rate | M31: ROI | N31: Spread
A32: ="Between "&TEXT(B32,"0.0")&" & "&TEXT(C32,"0.0") -> Between 1.0 & 1.5 | B32: 1 | C32: 1.5 | D32: =SUMIFS(GImpressions,GDate,">="&$E$30,GDate,"<="&$G$30,GCampaign,$I$1,GAdgroup,$M$1,GDevice,$O$2,GPosition,">="&$B32,GPosition,"<"&$C32) -> 54444 | E32: =SUMIFS(GClicks,GDate,">="&$E$30,GDate,"<="&$G$30,GCampaign,$I$1,GAdgroup,$M$1,GDevice,$O$2,GPosition,">="&$B32,GPosition,"<"&$C32) -> 7063 | F32: =IF(D32=0,0,E32/D32) -> 0.1297296304 | G32: =SUMIFS(GCost,GDate,">="&$E$30,GDate,"<="&$G$30,GCampaign,$I$1,GAdgroup,$M$1,GDevice,$O$2,GPosition,">="&$B32,GPosition,"<"&$C32) -> 18803.08 | H32: =IF(E32=0,0,G32/E32) -> 2.662194535 | I32: =SUMIFS(GConversions,GDate,">="&$E$30,GDate,"<="&$G$30,GCampaign,$I$1,GAdgroup,$M$1,GDevice,$O$2,GPosition,">="&$B32,GPosition,"<"&$C32) -> 1658 | J32: =SUMIFS(GRevenue,GDate,">="&$E$30,GDate,"<="&$G$30,GCampaign,$I$1,GAdgroup,$M$1,GDevice,$O$2,GPosition,">="&$B32,GPosition,"<"&$C32) -> 64050 | K32: =IF(I32=0,0,G32/I32) -> 11.34082027 | L32: =IF(E32=0,0,I32/E32) -> 0.2347444429 | M32: =IF(G32=0,0,J32/G32) -> 3.406356831 | N32: =IF(E$41=0,0,E32/E$41) -> 0.2788063001
A33: ="Between "&TEXT(B33,"0.0")&" & "&TEXT(C33,"0.0") -> Between 1.5 & 2.0 | B33: =OFFSET(C33,-1,0,1,1) -> 1.5 | C33: 2 | D33: 32372 | E33: 3758 | F33: =IF(D33=0,0,E33/D33) -> 0.1160879773 | G33: 6977.79 | H33: =IF(E33=0,0,G33/E33) -> 1.856782863 | I33: 807 | J33: 29050 | K33: =IF(I33=0,0,G33/I33) -> 8.646579926 | L33: =IF(E33=0,0,I33/E33) -> 0.214741884 | M33: =IF(G33=0,0,J33/G33) -> 4.163209268 | N33: =IF(E$41=0,0,E33/E$41) -> 0.1483440572
A34: Between 2.0 & 2.5 | B34: 2 | C34: 2.5 | D34: 93606 | E34: 5368 | F34: 0.05734675128 | G34: 8014.53 | H34: 1.493019747 | I34: 1064 | J34: 35650 | K34: 7.532453008 | L34: 0.1982116244 | M34: 4.448171009 | N34: 0.211897525
A35: Between 2.5 & 3.0 | B35: 2.5 | C35: 3 | D35: 130934 | E35: 5625 | F35: 0.04296057556 | G35: 7256.7 | H35: 1.29008 | I35: 977 | J35: 32850 | K35: 7.427533265 | L35: 0.1736888889 | M35: 4.526851048 | N35: 0.2220423953
A36: Between 3.0 & 3.5 | B36: 3 | C36: 3.5 | D36: 77208 | E36: 2362 | F36: 0.0305926847 | G36: 2833.84 | H36: 1.199762913 | I36: 375 | J36: 11750 | K36: 7.556906667 | L36: 0.1587637595 | M36: 4.146317364 | N36: 0.09323806892
A37: Between 3.5 & 4.0 | B37: 3.5 | C37: 4 | D37: 18680 | E37: 767 | F37: 0.04105995717 | G37: 673.83 | H37: 0.8785267275 | I37: 106 | J37: 3600 | K37: 6.356886792 | L37: 0.1382007823 | M37: 5.342593829 | N37: 0.03027671417
A38: Between 4.0 & 5.0 | B38: 4 | C38: 5 | D38: 6820 | E38: 390 | F38: 0.05718475073 | G38: 264.6 | H38: 0.6784615385 | I38: 49 | J38: 1450 | K38: 5.4 | L38: 0.1256410256 | M38: 5.479969766 | N38: 0.01539493941
A39: Between 5.0 & 6.0 | B39: 5 | C39: 6 | D39: 0 | E39: 0 | F39: 0 | G39: 0 | H39: 0 | I39: 0 | J39: 0 | K39: 0 | L39: 0 | M39: 0 | N39: 0
A40: =TEXT(OFFSET(C40,-1,0,1,1),"0.0")&"+" -> 6.0+ | B40: 6 | C40: 99 | D40: 0 | E40: 0 | F40: 0 | G40: 0 | H40: 0 | I40: 0 | J40: 0 | K40: 0 | L40: 0 | M40: 0 | N40: 0
A41: Total | D41: =SUM(D32:D40) -> 414064 | E41: =SUM(E32:E40) -> 25333 | F41: 0.06118136327 | G41: =SUM(G32:G40) -> 44824.37 | H41: 1.769406308 | I41: =SUM(I32:I40) -> 5036 | J41: =SUM(J32:J40) -> 178400 | K41: =IF(I41=0,0,G41/I41) -> 8.900788324 | L41: 0.1987920894 | M41: 3.979977856 | N41: 1
